fUSD/lending_fUSD_20250304
["ID","MTS","AMOUNT","RATE_DAILY","PERIOD"]
[355411909,1741116640411,-26526.29999997,0.000111,2]
[355411910,1741116640431,-405.555575,0.000111,2]
[355411911,1741116640529,-462.00225749,0.000111,2]
[355411912,1741116640541,-1792.4000004,0.000111,2]
[355411914,1741116640552,-35341.00492856,0.000111,2]
[355411917,1741116640571,-352.8534745,0.000111,2]
[355411920,1741116640598,-472.59550001,0.000111,2]
[355411923,1741116640610,-266.38190948,0.000111,2]
[355412196,1741116643083,-368.2466143,0.000111,2]
[355412363,1741116644696,-255.23942632,0.000111,2]
[355412365,1741116644719,-18097.69626618,0.000111,2]
[355412366,1741116644731,-1016.05,0.000111,2]
[355412373,1741116645966,-999.43555523,0.000111,2]
[355412374,1741116645977,-412.3704258,0.000111,2]
[355412375,1741116646019,-667.45344002,0.000111,2]
[355412376,1741116646079,-2793.7,0.000111,2]
[355412377,1741116646090,-8012.54252014,0.000111,2]
[355412378,1741116646135,-7584.77031787,0.000111,2]
[355412379,1741116646147,-4390.78422171,0.000111,2]
[355412380,1741116646193,-6455.20883158,0.000111,2]
[355412516,1741116762482,539.36,8.414e-05,2]
[355412526,1741117059391,-2000.0,0.00010254,2]
[355412527,1741117059415,-500.0,0.00010366,2]
[355412528,1741117209578,-151.29,0.00010257,2]
[355412529,1741117209603,-4984.62,0.0001026,2]
[355412530,1741117209628,-864.09,0.00010276,2]
[355412531,1741117225638,150.0,0.00010001,7]
[355412532,1741117230124,263.64085967,0.00022,120]
[355412533,1741117230146,708.34121788,0.00022,120]
[355412535,1741117436781,535.56,9.981e-05,2]
[355412547,1741117832595,-135.91,0.00010276,2]
[355412548,1741117832605,-150.0,0.00010284,2]
[355412549,1741117832614,-151.29,0.00010306,2]
[355412550,1741117832624,-151.29,0.00010354,2]
[355412551,1741117832633,-151.29,0.00010403,2]
[355412552,1741117832643,-151.29,0.00010452,2]
[355412553,1741117832653,-151.29,0.000105,2]
[355412554,1741117832662,-151.29,0.00010549,2]
[355412555,1741117832673,-151.29,0.00010597,2]
[355412556,1741117832682,-109.38311748,0.00010646,2]
[355412557,1741117832695,-41.90688252,0.00010646,2]
[355412558,1741117832705,-539.36,0.00010678,2]
[355412559,1741117832714,-151.29,0.00010694,2]
[355412560,1741117832723,-151.29,0.00010743,2]
[355412561,1741117832733,-151.29,0.00010792,2]
[355412562,1741117832743,-344.56,0.000108,2]
[355412563,1741117832753,-300.0,0.000108,2]
[355412564,1741117832763,-150.0,0.000108,2]
[355412565,1741117832772,-344.56,0.000108,2]
[355412566,1741117832782,-150.0,0.000108,2]
[355412567,1741117832791,-344.62,0.000108,2]
[355412568,1741117832800,-344.56,0.000108,2]
[355412569,1741117832811,-344.62,0.000108,2]
[355412570,1741117832822,-344.62,0.000108,2]
[355412571,1741117832833,-881.11,0.000108,2]
[355412572,1741117832843,-344.5,0.000108,2]
[355412574,1741117832854,-151.29,0.0001084,2]
[355412576,1741117832865,-151.29,0.00010889,2]
[355412578,1741117832875,-151.29,0.00010937,2]
[355412580,1741117832885,-200.0,0.00010959,2]
[355412583,1741117832895,-150.0,0.00010959,2]
[355412585,1741117832905,-151.29,0.00010986,2]
[355412586,1741117832914,-550.0,0.00011,2]
[355412588,1741117832924,-660.45411748,0.00011001,2]
[355412606,1741117833113,-12527.49621152,0.00011001,2]
[355412607,1741117833128,-1275.42038924,0.00011016,2]
[355412608,1741117833139,-3984.22204248,0.00011017,2]
[355412609,1741117833153,-17912.58865676,0.00011017,2]
[355412610,1741117833166,-1866.92655453,0.00011017,2]
[355412611,1741117833189,-4662.79896132,0.00011017,2]
[355412618,1741117838086,-924.535164,0.00011017,2]
[355412619,1741117838197,-5716.14343883,0.00011017,2]
[355412620,1741117838217,-1119.92206623,0.00011017,2]
[355412621,1741117838394,-1617.8806,0.00011017,2]
[355412622,1741117838442,-3979.7801504,0.00011017,2]
[355412623,1741117838461,-1202.90108533,0.00011017,2]
[355412624,1741117838478,-274.89989603,0.00011017,2]
[355412625,1741117838517,-5997.60007301,0.00011017,2]
[355412642,1741117838788,-8521.31409602,0.00011017,2]
[355412643,1741117838826,-5706.13483158,0.00011017,2]
[355412644,1741117838838,-1055.390328,0.00011017,2]
[355412653,1741117840456,-840.33719278,0.00011017,2]
[355412681,1741117843233,-1085.46762216,0.00011017,2]
[355412682,1741117843289,-4725.0,0.00011017,2]
[355412683,1741117843305,-8518.8070251,0.00011017,2]
[355412684,1741117843318,-5490.2577861,0.00011024,2]
[355412685,1741117843330,-5570.88,0.00011024,2]
[355412789,1741117844518,-369.12270208,0.00011024,2]
[355412791,1741117844529,-1509.09021663,0.00011024,2]
[355412953,1741117846233,-248.59962419,0.00011024,2]
[355412955,1741117846243,-563.81803016,0.00011025,2]
[355412962,1741117846299,-825.04561434,0.00011025,2]
[355412972,1741117846385,-151.17518767,0.00011025,2]
[355412973,1741117846395,-1540.03883217,0.00011027,2]
[355412975,1741117846404,-8721.23008381,0.0001103,2]
[355412978,1741117846415,-151.29,0.00011035,2]
[355412979,1741117846425,-1039.50737558,0.00011035,2]
[355412983,1741117846450,-1127.07900657,0.00011035,2]
[355412989,1741117846506,-6559.26550316,0.00011035,2]
[355414344,1741118122187,-200.0,0.0001025,2]
[355414345,1741118122504,-1200.9,0.0001025,2]
[355414346,1741118122514,-200.0,0.0001028,2]
[355414347,1741118249729,361.04,9.969e-05,2]
[355414348,1741118262418,-336.0,0.00010252,2]
[355414349,1741118336004,150.0,9.966e-05,7]
[355414350,1741118441782,574.6,9.966e-05,2]
[355414351,1741118451975,554.58,8.219e-05,2]
[355414352,1741118482629,1500.0,9.94e-05,2]
[355414353,1741118520734,250.0,9.949e-05,2]
[355414354,1741118739078,-248.67,0.00010252,2]
[355414355,1741118739107,-1000.0,0.00010252,2]
[355414356,1741118805486,-584.67,0.00010295,2]
[355414357,1741118858973,160.23,9.99e-05,2]
[355414361,1741119032343,-584.67,0.00010338,2]
[355414362,1741119032353,-584.67,0.00010381,2]
[355414363,1741119032362,-41.18674288,0.00010425,2]
[355414440,1741119038319,-543.48325712,0.00010425,2]
[355414441,1741119038329,-584.67,0.00010468,2]
[355414442,1741119038338,-554.58,0.00010474,2]
[355414443,1741119038348,-514.94088467,0.00010511,2]
[355414444,1741119038360,-69.72911533,0.00010511,2]
[355414445,1741119038369,-584.67,0.00010554,2]
[355414446,1741119038379,-251.38186334,0.00010597,2]
[355414447,1741119038424,-333.28813666,0.00010597,2]
[355414448,1741119038434,-584.67,0.0001064,2]
[355414449,1741119038443,-584.67,0.00010684,2]
[355414450,1741119038453,-584.67,0.00010727,2]
[355414451,1741119038463,-584.67,0.0001077,2]
[355414452,1741119038472,-150.0,0.000108,2]
[355414453,1741119038481,-1000.0,0.000108,2]
[355414454,1741119038491,-584.67,0.00010813,2]
[355414455,1741119038502,-584.67,0.00010856,2]
[355414456,1741119038511,-420.07468142,0.00010899,2]
[355414457,1741119038522,-164.59531858,0.00010899,2]
[355414458,1741119038531,-441.19,0.000109,2]
[355414459,1741119038544,-584.67,0.00010943,2]
[355414460,1741119038553,-1000.0,0.00010946,2]
[355414461,1741119038562,-99.91061687,0.00010959,2]
[355414462,1741119038577,-100.08938313,0.00010959,2]
[355414463,1741119038586,-584.67,0.00010986,2]
[355414464,1741119038595,-500.0,0.00011,2]
[355414465,1741119038604,-550.0,0.00011,2]
[355414466,1741119038613,-1819.32684988,0.00011,2]
[355414467,1741119038647,-571.19345012,0.00011,2]
[355414468,1741119038656,-313.47032988,0.00011,2]
[355414469,1741119038669,-1062.4557274,0.00011,2]
[355414515,1741119040587,-44276.0,0.00011,2]
[355414516,1741119040611,-40313.11484272,0.00011,2]
[355414517,1741119040621,-150.0,0.00011002,2]
[355414518,1741119040631,-150.0,0.00011014,2]
[355414519,1741119040641,-150.0,0.00011029,2]
[355414520,1741119040651,-584.67,0.00011029,2]
[355414521,1741119040662,-12853.22741323,0.00011035,2]
[355414522,1741119040672,-2744.15615,0.00011035,2]
[355414523,1741119040682,-152.0,0.00011035,3]
[355414524,1741119040692,-150.0,0.00011036,2]
[355414525,1741119040701,-8721.23008381,0.00011048,2]
[355414526,1741119040711,-1275.42038924,0.00011051,2]
[355414527,1741119040720,-516.6658783,0.00011054,2]
[355414528,1741119040730,-21579.07929854,0.00011055,2]
[355414529,1741119040739,-13187.950329,0.00011055,2]
[355414530,1741119040749,-275446.85761951,0.00011057,2]
[355414531,1741119040758,-275446.85761951,0.00011057,2]
[355414532,1741119040768,-150.0,0.00011059,2]
[355414533,1741119040777,-275446.85761951,0.0001106,2]
[355414534,1741119040786,-150.0,0.00011066,2]
[355414535,1741119040796,-150.0,0.00011071,2]
[355414536,1741119040805,-584.67,0.00011072,2]
[355414537,1741119040814,-163.54620752,0.00011073,2]
[355414538,1741119040824,-151.62050937,0.00011073,2]
[355414539,1741119040834,-182.28331995,0.00011073,2]
[355414540,1741119040843,-155.23027383,0.00011073,2]
[355414541,1741119040852,-208.52703364,0.00011073,2]
[355414542,1741119040861,-151.23039951,0.00011073,2]
[355414543,1741119040871,-160.04419975,0.00011073,2]
[355414544,1741119040880,-200.29271486,0.00011073,2]
[355414545,1741119040889,-151.04624153,0.00011073,2]
[355414546,1741119040898,-151.22728367,0.00011073,2]
[355414547,1741119040907,-150.0,0.00011076,2]
[355414548,1741119040919,-1275.42038924,0.0001108,2]
[355414549,1741119040929,-150.0,0.00011084,2]
[355414550,1741119040939,-8721.23008381,0.00011085,2]
[355414551,1741119040948,-1540.03883217,0.00011086,2]
[355414552,1741119040957,-150.0,0.00011088,2]
[355414553,1741119040967,-1205.78810016,0.00011089,2]
[355414554,1741119040976,-79712.64978456,0.00011092,2]
[355414555,1741119040985,-21579.07929854,0.00011093,2]
[355414556,1741119040995,-79712.64978456,0.00011095,2]
[355414557,1741119041005,-1000.0,0.00011098,2]
[355414559,1741119041015,-306.30698101,0.00011098,2]
[355414561,1741119041024,-5853.8762772,0.00011099,2]
[355414563,1741119041033,-1121.67718097,0.00011099,2]
[355414565,1741119041042,-183768.50571599,0.000111,2]
[355414567,1741119041052,-137987.40745915,0.000111,2]
[355414568,1741119041061,-348.1107,0.000111,2]
[355414569,1741119041070,-36363.4112,0.000111,2]
[355414570,1741119041080,-1000.0,0.00011102,2]
[355414571,1741119041090,-4059.519692,0.00011104,2]
[355414572,1741119041099,-326.07350084,0.00011111,2]
[355414573,1741119041108,-654.10636685,0.00011112,2]
[355414574,1741119041118,-150.0,0.00011112,2]
[355414575,1741119041127,-1000.0,0.00011113,2]
[355414576,1741119041137,-150.0,0.00011121,2]
[355414577,1741119041146,-150.0,0.00011123,2]
[355414578,1741119041155,-150.0,0.00011133,2]
[355414579,1741119041169,-150.0,0.00011135,2]
[355414580,1741119041179,-150.0,0.00011138,2]
[355414581,1741119041190,-2744.15615,0.0001115,2]
[355414582,1741119041199,-150.0,0.0001116,2]
[355414583,1741119041209,-150.0,0.0001116,2]
[355414584,1741119041219,-150.0,0.00011163,2]
[355414585,1741119041228,-150.0,0.00011164,2]
[355414586,1741119041238,-150.0,0.00011165,2]
[355414587,1741119041247,-201.31596956,0.00011173,2]
[355414588,1741119041257,-356.08944697,0.00011173,2]
[355414589,1741119041266,-160.23847766,0.00011173,2]
[355414590,1741119041275,-160.1495023,0.00011173,2]
[355414591,1741119041285,-151.22520566,0.00011173,2]
[355414592,1741119041295,-150.0,0.00011187,2]
[355414593,1741119041304,-163622.66767103,0.000112,2]
[355414594,1741119041315,-150.0,0.00011211,2]
[355414595,1741119041324,-1121.67718091,0.00011211,2]
[355414596,1741119041334,-574.6,0.00011212,2]
[355414597,1741119041343,-150.0,0.00011218,2]
[355414598,1741119041353,-150.0,0.0001122,2]
[355414599,1741119041363,-5853.87627711,0.00011221,2]
[355414600,1741119041372,-150.0,0.00011224,2]
[355414601,1741119041382,-535.56,0.00011229,2]
[355414602,1741119041391,-150.0,0.00011233,2]
[355414603,1741119041401,-150.0,0.00011236,2]
[355414604,1741119041410,-150.0,0.00011251,2]
[355414605,1741119041422,-289.27842201,0.00011257,2]
[355414606,1741119041431,-185.51434115,0.0001127,2]
[355414607,1741119041441,-185.51434115,0.0001127,2]
[355414608,1741119041450,-150.0,0.00011272,2]
[355414609,1741119041460,-3688.36,0.00011277,2]
[355414610,1741119041469,-205.67860262,0.00011279,2]
[355414611,1741119041479,-500.0,0.00011279,2]
[355414612,1741119041489,-540.8183442,0.00011279,2]
[355414613,1741119041499,-500.0,0.00011279,2]
[355414614,1741119041509,-500.0,0.00011279,2]
[355414615,1741119041520,-500.0,0.00011279,2]
[355414616,1741119041531,-150.0,0.00011279,2]
[355414617,1741119041541,-888.0,0.0001128,2]
[355414618,1741119041551,-1743505.46466356,0.0001128,2]
[355414619,1741119041575,-381.72999997,0.0001128,2]
[355414627,1741119043624,-739.94,0.00010959,2]
[355414628,1741119043634,-3684.2334548,0.0001128,2]
[355414652,1741119046875,-900.0,0.0001128,2]
[355414653,1741119046885,-1315.28953137,0.0001128,2]
[355414654,1741119046962,-1240.72771268,0.0001128,2]
[355414655,1741119046974,-515.26087998,0.0001128,2]
[355414656,1741119047017,-8678.60195988,0.0001128,2]
[355414658,1741119249985,-300.0,0.000108,3]
[355414659,1741119250020,-700.0,0.000109,3]
[355414660,1741119250052,-185.02,0.00010928,2]
[355414661,1741119250086,-690.24023269,0.00010969,2]
[355414662,1741119250120,-1000.0,0.00010984,2]
[355414663,1741119250154,-300.0,0.00010999,2]
[355414664,1741119250812,-2349.47953462,0.00011,2]
[355414665,1741119269019,180.52,0.0001012,2]
[355414666,1741119376201,469.81,0.00010113,2]
[355414667,1741119376399,469.81,0.00010156,2]
[355414668,1741119376819,469.81,0.00010198,2]
[355414669,1741119377002,469.81,0.00010241,2]
[355414670,1741119382300,150.0,0.0001009,7]
[355414671,1741119414065,1000.0,0.0001005,2]
[355414673,1741119509911,751.08,8.219e-05,2]
[355414674,1741119605659,321.33,0.00010043,2]
[355414675,1741119680057,1481.82,0.00010034,2]
[355414676,1741119680077,18.18,0.00010034,2]
[355414677,1741119955698,2000.0,9.961e-05,2]
[355414712,1741120231576,-468.53761822,0.00010284,2]
[355414713,1741120231749,-1.27238178,0.00010284,2]
[355414714,1741120231947,-150.0,0.00010294,2]
[355414715,1741120231957,-744.2916898,0.000103,2]
[355414716,1741120231966,-469.81,0.00010326,2]
[355414717,1741120231977,-89.77763704,0.00010369,2]
[355414719,1741120231990,-380.03236296,0.00010369,2]
[355414721,1741120231999,-469.81,0.00010411,2]
[355414722,1741120232008,-469.81,0.00010454,2]
[355414723,1741120232018,-751.08,0.00010479,2]
[355414724,1741120232027,-469.81,0.00010496,2]
[355414725,1741120232036,-469.81,0.00010539,2]
[355414726,1741120232045,-469.81,0.00010582,2]
[355414727,1741120232055,-469.81,0.00010624,2]
[355414728,1741120232064,-469.81,0.00010667,2]
[355414729,1741120232074,-300.0,0.000107,3]
[355414730,1741120232084,-469.81,0.00010709,2]
[355414731,1741120232094,-469.81,0.00010752,2]
[355414732,1741120232104,-469.81,0.00010794,2]
[355414733,1741120232115,-880.52,0.000108,2]
[355414735,1741120232125,-600.0,0.000108,3]
[355414737,1741120232134,-469.81,0.00010837,2]
[355414739,1741120232144,-469.81,0.0001088,2]
[355414741,1741120232153,-1469.7725,0.000109,2]
[355414743,1741120232162,-1568.1875,0.000109,2]
[355414745,1741120232171,-1394.4628,0.000109,2]
[355414747,1741120232180,-900.0,0.000109,3]
[355414749,1741120232192,-979.3937,0.000109,2]
[355414751,1741120232202,-158.2133,0.000109,2]
[355414753,1741120232212,-882.38,0.00010904,2]
[355414755,1741120232221,-150.0,0.00010904,2]
[355414757,1741120232230,-469.81,0.00010922,2]
[355414759,1741120232239,-777.67,0.00010959,2]
[355414761,1741120232249,-492.28673709,0.00010959,2]
[355414765,1741120232273,-1606.53326291,0.00010959,2]
[355414767,1741120232282,-150.0,0.00010959,2]
[355414769,1741120232292,-124.01073709,0.0001098,2]
[355414773,1741120232321,-174.87476291,0.0001098,2]
[355414775,1741120232330,-3068.3707,0.0001098,2]
[355414777,1741120232339,-414.73552647,0.00010989,2]
[355414779,1741120232349,-12525.27765504,0.00011,2]
[355414787,1741120237824,-2099.864192,0.00011,2]
[355414788,1741120237839,-7995.97423844,0.00011,2]
[355414789,1741120237854,-7053.23970044,0.00011,2]
[355414790,1741120237882,-502.36352681,0.00011,2]
[355414791,1741120237894,-393.69097478,0.00011,2]
[355414792,1741120237913,-6267.20607787,0.00011,2]
[355414793,1741120237923,-2472.81086245,0.00011,2]
[355414794,1741120237934,-6053.15384358,0.00011,2]
[355414795,1741120237962,-443.41928606,0.00011,2]
[355414797,1741120237982,-17754.15,0.00011,2]
[355414855,1741120239560,-1971.741075,0.00011,2]
[355414856,1741120239959,-336.94939951,0.00011,2]
[355414857,1741120239970,-19232.6189334,0.00011,2]
[355414858,1741120239981,-1030.0,0.00011,2]
[355414859,1741120239991,-1000.0,0.00011,2]
[355414860,1741120240000,-150.0,0.00011003,2]
[355414861,1741120240009,-940.16138879,0.00011008,2]
[355414862,1741120240020,-150.0,0.00011009,2]
[355414863,1741120240029,-150.0,0.00011013,2]
[355414864,1741120240039,-150.0,0.0001102,2]
[355414865,1741120240048,-150.0,0.00011028,2]
[355414866,1741120240058,-150.0,0.00011032,2]
[355414867,1741120240067,-940.16138879,0.00011036,2]
[355414868,1741120240078,-150.0,0.00011046,2]
[355414869,1741120240087,-150.0,0.00011046,2]
[355414870,1741120240097,-150.0,0.00011046,2]
[355414871,1741120240107,-15165.3826,0.00011054,2]
[355414872,1741120240116,-2886.1977,0.00011054,2]
[355414873,1741120240126,-387.4994087,0.00011054,2]
[355414874,1741120240135,-940.16138879,0.00011057,2]
[355414875,1741120240144,-616.66993916,0.00011059,2]
[355414876,1741120240156,-298.19413695,0.00011059,2]
[355414877,1741120240167,-85.13592389,0.00011059,2]
[355414878,1741120240177,-150.0,0.00011062,2]
[355414879,1741120240186,-150.0,0.00011068,2]
[355414880,1741120240195,-62.16407611,0.00011074,2]
[355414881,1741120240224,-87.83592389,0.00011074,2]
[355414882,1741120240234,-2422.9021,0.0001108,2]
[355414883,1741120240243,-1527.7792,0.0001108,2]
[355414884,1741120240253,-961.0125,0.0001108,2]
[355414885,1741120240262,-3040.68794147,0.0001108,2]
[355414886,1741120240273,-6162.49405853,0.0001108,2]
[355414887,1741120240283,-6690.4653,0.0001108,2]
[355414888,1741120240292,-2927.9732,0.0001108,2]
[355414889,1741120240302,-269.173,0.0001108,2]
[355414890,1741120240312,-7223.0331,0.0001108,2]
[355414891,1741120240321,-2356.2935,0.0001108,2]
[355414892,1741120240331,-807.6185,0.0001108,2]
[355414893,1741120240340,-10315.707,0.0001108,2]
[355414894,1741120240350,-2500.0,0.0001108,2]
[355414895,1741120240359,-150.0,0.00011083,2]
[355414896,1741120240369,-906.16580515,0.00011089,2]
[355414897,1741120240378,-1303.71658276,0.00011099,2]
[355414898,1741120240387,-1000.0,0.000111,2]
[355414899,1741120240397,-743.0,0.000111,2]
[355414900,1741120240406,-1000.0,0.000111,2]
[355414901,1741120240415,-1177.0,0.000111,2]
[355414902,1741120240424,-1000.0,0.000111,2]
[355414903,1741120240433,-1000.0,0.000111,2]
[355414904,1741120240443,-150.0,0.00011105,2]
[355414905,1741120240453,-326.07350084,0.00011105,2]
[355414906,1741120240462,-199.95925229,0.00011117,2]
[355414907,1741120240472,-150.0,0.00011124,2]
[355414908,1741120240481,-1000.0,0.0001113,2]
[355414909,1741120240490,-150.0,0.0001113,2]
[355414910,1741120240499,-150.0,0.00011132,2]
[355414911,1741120240509,-1044.0,0.0001114,2]
[355414912,1741120240518,-150.92562861,0.00011151,2]
[355414913,1741120240528,-1000.0,0.00011154,2]
[355414914,1741120240537,-150.0,0.00011155,2]
[355414915,1741120240547,-150.0,0.00011162,2]
[355414916,1741120240556,-150.0,0.00011167,2]
[355414917,1741120240565,-1000.0,0.00011169,2]
[355414918,1741120240575,-1829.43743,0.0001117,2]
[355414919,1741120240584,-151.22947492,0.00011173,2]
[355414920,1741120240595,-555.84944078,0.00011173,2]
[355414921,1741120240604,-1000.0,0.00011176,2]
[355414922,1741120240614,-150.0,0.00011177,2]
[355414923,1741120240624,-70343.32351596,0.0001118,2]
[355414924,1741120240644,-1139.76574741,0.0001118,2]
[355414927,1741120242410,-1774.8731,0.0001118,2]
[355414960,1741120242760,-3767.09999,0.0001118,2]
[355414972,1741120245556,-12448.66,0.0001118,2]
[355414973,1741120245700,-7493.5821794,0.0001118,2]
[355414976,1741120246007,-11077.23062481,0.0001118,2]
[355414977,1741120246020,-1706.87947802,0.0001118,2]
[355414978,1741120439823,7981.82,0.00010222,2]
[355414979,1741120439845,10000.0,0.00010222,2]
[355414980,1741120439869,5918.18,0.00010222,2]
[355414981,1741120466112,157.27,0.00010227,2]
[355414982,1741120480116,1000.0,0.00010124,2]
[355414983,1741120497424,2924.55,0.00010124,2]
[355414984,1741120497460,10000.0,0.00010124,2]
[355414985,1741120497495,8141.92,0.00010124,2]
[355414986,1741120709564,1500.0,0.00010111,2]
[355414987,1741120746094,344.76,0.00010099,2]
[355414988,1741120817949,13.32,8.219e-05,2]
[355414989,1741120817973,710.54,8.219e-05,2]
[355414990,1741120988431,180.52,0.00010088,2]
[355414992,1741121167809,4532.47319,0.0002,120]
[355414993,1741121244819,159.23,0.00010052,2]
[355415000,1741121431777,-1522.31521,0.00010289,2]
[355415001,1741121431787,-150.0,0.00010289,2]
[355415002,1741121431799,-157.27,0.00010289,2]
[355415003,1741121431813,-157.27,0.00010352,2]
[355415004,1741121431825,-165.24,0.00010378,2]
[355415005,1741121431837,-157.27,0.00010415,2]
[355415006,1741121431849,-157.27,0.00010478,2]
[355415007,1741121431862,-723.86,0.0001048,2]
[355415008,1741121431872,-157.27,0.00010541,2]
[355415009,1741121431881,-150.0,0.00010575,2]
[355415010,1741121431891,-157.27,0.00010604,2]
[355415011,1741121431900,-357.84324569,0.00010663,2]
[355415012,1741121431910,-157.27,0.00010667,2]
[355415013,1741121431919,-150.0,0.000107,2]
[355415014,1741121431929,-157.27,0.0001073,2]
[355415015,1741121431938,-157.27,0.00010793,2]
[355415016,1741121431948,-157.27,0.00010856,2]
[355415017,1741121431957,-790.4,0.00010866,2]
[355415018,1741121431967,-5875.34932091,0.0001088,2]
[355415019,1741121431976,-157.27,0.00010919,2]
[355415020,1741121431985,-157.27,0.00010982,2]
[355415021,1741121431995,-45571.57873964,0.00010992,2]
[355415022,1741121432004,-99.47618192,0.00011,2]
[355415036,1741121432582,-450.52381808,0.00011,2]
[355415037,1741121432591,-1000.0,0.00011,2]
[355415038,1741121432601,-150.0,0.00011015,2]
[355415039,1741121432611,-5209.88575891,0.00011015,2]
[355415040,1741121432646,-3081.97164808,0.00011015,2]
[355415041,1741121432658,-4544.10978478,0.00011015,2]
[355415042,1741121432668,-726.98962187,0.00011018,2]
[355415043,1741121432678,-10750.3858997,0.00011019,2]
[355415044,1741121432690,-8654.03363902,0.00011019,2]
[355415045,1741121432737,-2246.83155455,0.00011019,2]
[355415059,1741121437733,-942.37,0.00011019,2]
[355415060,1741121437808,-777.29191728,0.00011019,2]
[355415061,1741121437845,-18889.31063699,0.00011019,2]
[355415062,1741121437863,-351.06681221,0.00011019,2]
[355415074,1741121438231,-874.5335143,0.00011019,2]
[355415075,1741121438245,-277.32673984,0.00011019,2]
[355415076,1741121438257,-392.88405798,0.00011019,2]
[355415081,1741121439887,-1415.54396777,0.00011019,2]
[355415082,1741121439897,-12835.96719177,0.00011024,2]
[355415083,1741121439907,-877.82213434,0.00011025,2]
[355415084,1741121439916,-726.98962187,0.00011026,2]
[355415085,1741121439926,-150.0,0.00011031,2]
[355415086,1741121439936,-150.0,0.00011031,2]
[355415087,1741121439946,-30096.49711109,0.00011034,2]
[355415088,1741121439960,-91802.24968355,0.00011034,2]
[355415089,1741121439976,-8137.33473741,0.00011034,2]
[355415090,1741121440449,-2454.9999,0.00011034,2]
[355415091,1741121440710,-24513.62741107,0.00011034,2]
[355415092,1741121440723,-150.0,0.00011035,2]
[355415093,1741121440732,-502.18079797,0.00011037,2]
[355415094,1741121440748,-3479.578,0.00011037,2]
[355415121,1741121444752,-686.0,0.00010874,2]
[355415122,1741121444764,-71.51,0.00010874,2]
[355415123,1741121444773,-11710.13261542,0.00011037,2]
[355415124,1741121444785,-13368.19984244,0.00011037,2]
[355415125,1741121444811,-528.9391607,0.00011037,2]
[355415140,1741121445730,-126339.60000001,0.00011037,2]
[355415147,1741121445785,-1076.07842658,0.00011037,2]
[355415149,1741121445795,-157004.70884312,0.00011038,2]
[355415151,1741121445805,-157.27,0.00011045,2]
[355415152,1741121445815,-12835.96719177,0.00011047,2]
[355415153,1741121445825,-333.8069933,0.00011054,2]
[355415154,1741121445835,-7517.13168753,0.00011054,2]
[355415155,1741121445845,-877.82213434,0.00011058,2]
[355415156,1741121445854,-1524.53119,0.0001107,2]
[355415157,1741121445864,-877.82213434,0.0001107,2]
[355415158,1741121445873,-1000.0,0.00011075,2]
[355415159,1741121445883,-7517.13168753,0.00011077,2]
[355415160,1741121445892,-316.57165731,0.00011078,2]
[355415161,1741121445901,-726.98962187,0.00011079,2]
[355415162,1741121445911,-7517.13168753,0.00011079,2]
[355415163,1741121445920,-222.9919,0.0001108,2]
[355415164,1741121445930,-313.6098,0.0001108,2]
[355415165,1741121445940,-4971.10114777,0.00011085,2]
[355415166,1741121445949,-150.0,0.00011087,2]
[355415167,1741121445958,-45571.57873964,0.0001109,2]
[355415168,1741121445969,-4971.10114777,0.0001109,2]
[355415169,1741121445979,-4971.10114777,0.00011093,2]
[355415170,1741121445988,-150.0,0.00011097,2]
[355415171,1741121445997,-373.66857538,0.00011098,2]
[355415172,1741121446006,-1000.0,0.000111,2]
[355415173,1741121446016,-1000.0,0.00011123,2]
[355415174,1741121446025,-150.0,0.00011124,2]